[Event "Titled Tuesday Blitz May 24 Late 2022"]
[White "Yaksin, Oleg"]
[Black "Darini, Pouria"]
[WhiteFideId "24105880"]
[BlackFideId "12502200"]
[WhiteElo "2256"]
[BlackElo "2483"]
[Result "0-1"]
[Round "04"]
[TimeControl "180+1"]
[Date "2022.05.24"]
[WhiteClock "0:00:04"]
[BlackClock "0:00:12"]

1. d4 {[%clk 0:02:55]}  Nf6 {[%clk 0:02:59]} 2. c4 {[%clk 0:02:52]}  g6 {[%clk 0:03:00]} 3. g3 {[%clk 0:02:51]}  Bg7 {[%clk 0:02:58]} 4. Bg2 {[%clk 0:02:51]}  c6 {[%clk 0:02:59]} 5. Nf3 {[%clk 0:02:50]}  O-O {[%clk 0:02:58]} 6. O-O {[%clk 0:02:50]}  d5 {[%clk 0:02:59]} 7. cxd5 {[%clk 0:02:50]}  cxd5 {[%clk 0:03:00]} 8. Ne5 {[%clk 0:02:50]}  Nfd7 {[%clk 0:03:00]} 9. f4 {[%clk 0:02:50]}  Nb6 {[%clk 0:02:58]} 10. Nc3 {[%clk 0:02:47]}  Nc6 {[%clk 0:02:58]} 11. Be3 {[%clk 0:02:43]}  Bf5 {[%clk 0:02:51]} 12. Bf2 {[%clk 0:02:34]}  Rc8 {[%clk 0:02:50]} 13. Rc1 {[%clk 0:02:32]}  f6 {[%clk 0:02:36]} 14. Nxc6 {[%clk 0:02:22]}  Rxc6 {[%clk 0:02:36]} 15. Qb3 {[%clk 0:02:17]}  Be6 {[%clk 0:02:32]} 16. Nb5 {[%clk 0:02:07]}  Nc4 {[%clk 0:02:24]} 17. Rfd1 {[%clk 0:02:00]}  Rb6 {[%clk 0:02:15]} 18. e4 {[%clk 0:01:43]}  Nd6 {[%clk 0:01:55]} 19. a4 {[%clk 0:01:41]}  a6 {[%clk 0:01:54]} 20. exd5 {[%clk 0:01:30]}  Bd7 {[%clk 0:01:53]} 21. Be1 {[%clk 0:01:13]}  axb5 {[%clk 0:01:53]} 22. Ba5 {[%clk 0:01:12]}  f5 {[%clk 0:01:27]} 23. Qb4 {[%clk 0:01:11]}  Nc8 {[%clk 0:00:51]} 24. d6 {[%clk 0:01:08]}  exd6 {[%clk 0:00:43]} 25. Bd5+ {[%clk 0:00:40]}  Kh8 {[%clk 0:00:43]} 26. Rc2 {[%clk 0:00:25]}  bxa4 {[%clk 0:00:28]} 27. Rxc8 {[%clk 0:00:20]}  Rxb4 {[%clk 0:00:17]} 28. Rxd8 {[%clk 0:00:19]}  Rxd8 {[%clk 0:00:17]} 29. Bxb4 {[%clk 0:00:19]}  Bc6 {[%clk 0:00:13]} 30. Bc4 {[%clk 0:00:19]}  b5 {[%clk 0:00:12]} 31. Bd3 {[%clk 0:00:19]}  Bd5 {[%clk 0:00:10]} 32. Bf1 {[%clk 0:00:13]}  Bc4 {[%clk 0:00:09]} 33. Bxc4 {[%clk 0:00:11]}  bxc4 {[%clk 0:00:10]} 34. Bc3 {[%clk 0:00:11]}  d5 {[%clk 0:00:09]} 35. Ra1 {[%clk 0:00:11]}  Ra8 {[%clk 0:00:09]} 36. Kf2 {[%clk 0:00:11]}  Kg8 {[%clk 0:00:09]} 37. Ke2 {[%clk 0:00:11]}  Kf7 {[%clk 0:00:10]} 38. Kd2 {[%clk 0:00:10]}  Ke6 {[%clk 0:00:10]} 39. Kc2 {[%clk 0:00:09]}  Kd7 {[%clk 0:00:10]} 40. Re1 {[%clk 0:00:08]}  Bf6 {[%clk 0:00:11]} 41. Ra1 {[%clk 0:00:07]}  h5 {[%clk 0:00:11]} 42. h4 {[%clk 0:00:07]}  Be7 {[%clk 0:00:11]} 43. Ra2 {[%clk 0:00:06]}  Bd6 {[%clk 0:00:11]} 44. Ra1 {[%clk 0:00:06]}  Bf8 {[%clk 0:00:11]} 45. Ra2 {[%clk 0:00:06]}  Kc6 {[%clk 0:00:12]} 46. Ra1 {[%clk 0:00:06]}  Bd6 {[%clk 0:00:12]} 47. Ra2 {[%clk 0:00:06]}  Kb5 {[%clk 0:00:12]} 48. Ra1 {[%clk 0:00:07]}  Re8 {[%clk 0:00:12]} 49. Kd2 {[%clk 0:00:06]}  Re4 {[%clk 0:00:12]} 50. Ra2 {[%clk 0:00:06]}  Be7 {[%clk 0:00:12]} 51. Ra1 {[%clk 0:00:03]}  Bf6 {[%clk 0:00:13]} 52. Re1 {[%clk 0:00:03]}  Bxd4 {[%clk 0:00:11]} 53. Bxd4 {[%clk 0:00:01]}  Rxd4+ {[%clk 0:00:12]} 54. Kc2 {[%clk 0:00:02]}  Re4 {[%clk 0:00:12]} 55. Rd1 {[%clk 0:00:03]}  d4 {[%clk 0:00:12]} 56. Rd2 {[%clk 0:00:03]}  Kb4 {[%clk 0:00:13]} 57. Rd1 {[%clk 0:00:03]}  d3+ {[%clk 0:00:13]} 58. Kb1 {[%clk 0:00:04]}  Re2 {[%clk 0:00:13]} 59. Rc1 {[%clk 0:00:04]}  Rg2 {[%clk 0:00:13]} 60. Rc3 {[%clk 0:00:04]}  Rg1+ {[%clk 0:00:13]} 61. Ka2 {[%clk 0:00:04]}  Re1 {[%clk 0:00:12]} 0-1


[Site "https://www.chess.com"]

[Event "Titled Tuesday Blitz May 24 Late 2022"]
[White "Yanayt, Eugene"]
[Black "Skliarov, Viktor"]
[WhiteFideId "2020165"]
[BlackFideId "14106736"]
[WhiteElo "2046"]
[BlackElo "2229"]
[Result "1-0"]
[Round "04"]
[TimeControl "180+1"]
[Date "2022.05.25"]
[WhiteClock "0:00:14"]
[BlackClock "0:00:03"]

1. c4 {[%clk 0:03:00]}  e5 {[%clk 0:02:59]} 2. g3 {[%clk 0:03:00]}  Nf6 {[%clk 0:02:59]} 3. Bg2 {[%clk 0:02:59]}  c6 {[%clk 0:02:59]} 4. a3 {[%clk 0:02:51]}  d5 {[%clk 0:02:59]} 5. d4 {[%clk 0:02:51]}  dxc4 {[%clk 0:02:52]} 6. dxe5 {[%clk 0:02:48]}  Qxd1+ {[%clk 0:02:51]} 7. Kxd1 {[%clk 0:02:48]}  Ng4 {[%clk 0:02:51]} 8. Nh3 {[%clk 0:02:32]}  Nxe5 {[%clk 0:02:51]} 9. a4 {[%clk 0:02:25]}  Na6 {[%clk 0:02:43]} 10. Bf4 {[%clk 0:02:20]}  Ng6 {[%clk 0:02:25]} 11. Na3 {[%clk 0:02:05]}  Bxh3 {[%clk 0:02:13]} 12. Bxh3 {[%clk 0:02:04]}  Nxf4 {[%clk 0:02:14]} 13. gxf4 {[%clk 0:02:04]}  Rd8+ {[%clk 0:02:14]} 14. Kc2 {[%clk 0:01:58]}  Nb4+ {[%clk 0:01:59]} 15. Kc3 {[%clk 0:01:58]}  Nd5+ {[%clk 0:01:59]} 16. Kxc4 {[%clk 0:01:45]}  Nxf4 {[%clk 0:01:59]} 17. Bg4 {[%clk 0:01:45]}  Be7 {[%clk 0:01:29]} 18. Rhd1 {[%clk 0:01:39]}  O-O {[%clk 0:01:26]} 19. e3 {[%clk 0:01:33]}  Nd5 {[%clk 0:01:25]} 20. a5 {[%clk 0:01:30]}  b5+ {[%clk 0:01:12]} 21. Kb3 {[%clk 0:01:29]}  a6 {[%clk 0:01:04]} 22. Bf3 {[%clk 0:01:26]}  Nb4 {[%clk 0:00:41]} 23. Nc2 {[%clk 0:01:25]}  Nxc2 {[%clk 0:00:21]} 24. Kxc2 {[%clk 0:01:25]}  Bf6 {[%clk 0:00:18]} 25. Rac1 {[%clk 0:01:05]}  c5 {[%clk 0:00:12]} 26. Bb7 {[%clk 0:01:04]}  Rb8 {[%clk 0:00:09]} 27. Bxa6 {[%clk 0:01:00]}  Ra8 {[%clk 0:00:05]} 28. Rd6 {[%clk 0:00:50]}  Rfb8 {[%clk 0:00:04]} 29. Rcd1 {[%clk 0:00:44]}  h5 {[%clk 0:00:04]} 30. Rc6 {[%clk 0:00:41]}  c4 {[%clk 0:00:04]} 31. Rd7 {[%clk 0:00:36]}  Kf8 {[%clk 0:00:02]} 32. Bb7 {[%clk 0:00:27]}  Rxa5 {[%clk 0:00:01]} 33. Rcc7 {[%clk 0:00:20]}  h4 {[%clk 0:00:01]} 34. Rxf7+ {[%clk 0:00:20]}  Kg8 {[%clk 0:00:02]} 35. Bd5 {[%clk 0:00:19]}  Kh7 {[%clk 0:00:02]} 36. Rxf6 {[%clk 0:00:20]}  Kh8 {[%clk 0:00:02]} 37. Rf4 {[%clk 0:00:17]}  Rb6 {[%clk 0:00:03]} 38. Rf8+ {[%clk 0:00:16]}  Kh7 {[%clk 0:00:03]} 39. Be4+ {[%clk 0:00:16]}  Kh6 {[%clk 0:00:03]} 40. Rc5 {[%clk 0:00:15]}  g5 {[%clk 0:00:03]} 41. Rf7 {[%clk 0:00:15]}  Re6 {[%clk 0:00:03]} 42. Rh7# {[%clk 0:00:14]} 1-0


[Site "https://www.chess.com"]

[Event "Titled Tuesday Blitz May 24 Late 2022"]
[White "Zherebtsova, Alexandra"]
[Black "Winkels, Marcel"]
[WhiteFideId "24129518"]
[BlackFideId "1003887"]
[WhiteElo "2025"]
[BlackElo "1900"]
[Result "0-1"]
[Round "04"]
[TimeControl "180+1"]
[Date "2022.05.25"]
[WhiteClock "0:00:03"]
[BlackClock "0:00:30"]

1. d4 {[%clk 0:03:00]}  Nf6 {[%clk 0:02:59]} 2. c4 {[%clk 0:02:55]}  g6 {[%clk 0:02:58]} 3. Nc3 {[%clk 0:02:54]}  Bg7 {[%clk 0:02:59]} 4. e4 {[%clk 0:02:49]}  d6 {[%clk 0:02:59]} 5. Be2 {[%clk 0:02:45]}  O-O {[%clk 0:02:58]} 6. Be3 {[%clk 0:02:45]}  c6 {[%clk 0:02:56]} 7. h3 {[%clk 0:02:39]}  e5 {[%clk 0:02:56]} 8. d5 {[%clk 0:02:37]}  cxd5 {[%clk 0:02:55]} 9. cxd5 {[%clk 0:02:36]}  Ne8 {[%clk 0:02:53]} 10. g4 {[%clk 0:02:34]}  f5 {[%clk 0:02:36]} 11. gxf5 {[%clk 0:02:27]}  gxf5 {[%clk 0:02:35]} 12. exf5 {[%clk 0:02:18]}  Bxf5 {[%clk 0:02:33]} 13. Bg4 {[%clk 0:02:18]}  Qd7 {[%clk 0:02:16]} 14. Nge2 {[%clk 0:02:05]}  Na6 {[%clk 0:02:04]} 15. Ng3 {[%clk 0:01:58]}  Bxg4 {[%clk 0:01:58]} 16. hxg4 {[%clk 0:01:57]}  e4 {[%clk 0:01:31]} 17. Ncxe4 {[%clk 0:01:41]}  Nf6 {[%clk 0:01:30]} 18. Nxf6+ {[%clk 0:01:08]}  Bxf6 {[%clk 0:01:28]} 19. Bd4 {[%clk 0:00:43]}  Nb4 {[%clk 0:01:15]} 20. Bxf6 {[%clk 0:00:38]}  Rae8+ {[%clk 0:01:12]} 21. Kf1 {[%clk 0:00:31]}  Rxf6 {[%clk 0:01:12]} 22. Nf5 {[%clk 0:00:18]}  Qb5+ {[%clk 0:00:56]} 23. Kg1 {[%clk 0:00:18]}  Qxd5 {[%clk 0:00:53]} 24. Qxd5+ {[%clk 0:00:18]}  Nxd5 {[%clk 0:00:52]} 25. Rd1 {[%clk 0:00:19]}  Nf4 {[%clk 0:00:50]} 26. Kh2 {[%clk 0:00:16]}  Re2 {[%clk 0:00:48]} 27. Kg3 {[%clk 0:00:16]}  Ng6 {[%clk 0:00:46]} 28. Rhe1 {[%clk 0:00:15]}  Rxe1 {[%clk 0:00:45]} 29. Rxe1 {[%clk 0:00:15]}  d5 {[%clk 0:00:45]} 30. Rd1 {[%clk 0:00:15]}  Rb6 {[%clk 0:00:40]} 31. b3 {[%clk 0:00:14]}  Ra6 {[%clk 0:00:39]} 32. Rxd5 {[%clk 0:00:11]}  Rxa2 {[%clk 0:00:38]} 33. Rd8+ {[%clk 0:00:11]}  Kf7 {[%clk 0:00:38]} 34. Rd7+ {[%clk 0:00:12]}  Ke6 {[%clk 0:00:37]} 35. Rxb7 {[%clk 0:00:12]}  a5 {[%clk 0:00:36]} 36. Rxh7 {[%clk 0:00:11]}  Ne5 {[%clk 0:00:35]} 37. Rb7 {[%clk 0:00:10]}  Rb2 {[%clk 0:00:34]} 38. f3 {[%clk 0:00:07]}  a4 {[%clk 0:00:33]} 39. b4 {[%clk 0:00:05]}  a3 {[%clk 0:00:33]} 40. b5 {[%clk 0:00:05]}  a2 {[%clk 0:00:32]} 41. Ra7 {[%clk 0:00:05]}  Nc4 {[%clk 0:00:31]} 42. Ra4 {[%clk 0:00:04]}  Nd2 {[%clk 0:00:30]} 43. b6 {[%clk 0:00:04]}  Nb3 {[%clk 0:00:30]} 44. b7 {[%clk 0:00:03]}  a1=Q {[%clk 0:00:30]} 0-1


[Site "https://www.chess.com"]

[Event "Titled Tuesday Blitz May 24 Late 2022"]
[White "Zhigalko, Sergei"]
[Black "Livaic, Leon"]
[WhiteFideId "13502956"]
[BlackFideId "14531534"]
[WhiteElo "2662"]
[BlackElo "2540"]
[Result "1-0"]
[Round "04"]
[TimeControl "180+1"]
[Date "2022.05.24"]
[WhiteClock "0:00:04"]
[BlackClock "0:00:07"]

1. e4 {[%clk 0:03:00]}  e5 {[%clk 0:02:54]} 2. Nf3 {[%clk 0:03:00]}  Nc6 {[%clk 0:02:55]} 3. Bc4 {[%clk 0:03:00]}  Bc5 {[%clk 0:02:54]} 4. b4 {[%clk 0:03:00]}  Bb6 {[%clk 0:02:51]} 5. a4 {[%clk 0:03:00]}  a6 {[%clk 0:02:51]} 6. Nc3 {[%clk 0:03:00]}  Nf6 {[%clk 0:02:44]} 7. Nd5 {[%clk 0:02:59]}  Nxd5 {[%clk 0:02:31]} 8. exd5 {[%clk 0:02:59]}  Nd4 {[%clk 0:02:32]} 9. d6 {[%clk 0:02:53]}  cxd6 {[%clk 0:02:20]} 10. a5 {[%clk 0:02:53]}  Ba7 {[%clk 0:02:20]} 11. Nxd4 {[%clk 0:02:50]}  Bxd4 {[%clk 0:02:21]} 12. Qf3 {[%clk 0:02:46]}  Qf6 {[%clk 0:02:03]} 13. Qxf6 {[%clk 0:02:33]}  gxf6 {[%clk 0:02:04]} 14. c3 {[%clk 0:02:34]}  Ba7 {[%clk 0:02:03]} 15. d4 {[%clk 0:02:26]}  b5 {[%clk 0:01:54]} 16. axb6 {[%clk 0:02:18]}  Bxb6 {[%clk 0:01:54]} 17. Be3 {[%clk 0:02:09]}  Bb7 {[%clk 0:01:53]} 18. Rg1 {[%clk 0:01:51]}  d5 {[%clk 0:01:16]} 19. Bd3 {[%clk 0:01:47]}  e4 {[%clk 0:01:17]} 20. Be2 {[%clk 0:01:47]}  f5 {[%clk 0:01:17]} 21. Kd2 {[%clk 0:01:29]}  Ke7 {[%clk 0:01:16]} 22. Ra2 {[%clk 0:01:21]}  Bc7 {[%clk 0:01:13]} 23. g3 {[%clk 0:01:18]}  Rhg8 {[%clk 0:01:11]} 24. Rga1 {[%clk 0:01:16]}  Rg6 {[%clk 0:01:12]} 25. h4 {[%clk 0:00:50]}  h6 {[%clk 0:01:12]} 26. h5 {[%clk 0:00:42]}  Rf6 {[%clk 0:01:13]} 27. Bf4 {[%clk 0:00:41]}  Bxf4+ {[%clk 0:01:11]} 28. gxf4 {[%clk 0:00:42]}  Rb6 {[%clk 0:00:56]} 29. b5 {[%clk 0:00:40]}  a5 {[%clk 0:00:45]} 30. Rxa5 {[%clk 0:00:40]}  Rg8 {[%clk 0:00:46]} 31. Ke3 {[%clk 0:00:24]}  Rg2 {[%clk 0:00:46]} 32. Rh1 {[%clk 0:00:23]}  Bc8 {[%clk 0:00:33]} 33. Ra8 {[%clk 0:00:20]}  Kd8 {[%clk 0:00:32]} 34. Raa1 {[%clk 0:00:11]}  Rb7 {[%clk 0:00:28]} 35. Rag1 {[%clk 0:00:07]}  Rxg1 {[%clk 0:00:24]} 36. Rxg1 {[%clk 0:00:08]}  Rc7 {[%clk 0:00:23]} 37. Kd2 {[%clk 0:00:05]}  Ke7 {[%clk 0:00:18]} 38. Rg8 {[%clk 0:00:06]}  Bb7 {[%clk 0:00:17]} 39. Rh8 {[%clk 0:00:06]}  Bc8 {[%clk 0:00:12]} 40. Rxh6 {[%clk 0:00:06]}  Ra7 {[%clk 0:00:12]} 41. Rh8 {[%clk 0:00:05]}  Ra2+ {[%clk 0:00:13]} 42. Ke3 {[%clk 0:00:03]}  Bb7 {[%clk 0:00:12]} 43. Rb8 {[%clk 0:00:03]}  Ba8 {[%clk 0:00:12]} 44. h6 {[%clk 0:00:03]}  Rc2 {[%clk 0:00:08]} 45. h7 {[%clk 0:00:03]}  Rxc3+ {[%clk 0:00:08]} 46. Kd2 {[%clk 0:00:04]}  Rh3 {[%clk 0:00:07]} 47. h8=Q {[%clk 0:00:04]} 1-0


[Site "https://www.chess.com"]

[Event "Titled Tuesday Blitz May 24 Late 2022"]
[White "Zhurbinsky, David"]
[Black "Ivanisevic, Ivan"]
[WhiteFideId "2072904"]
[BlackFideId "912417"]
[WhiteElo "2569"]
[BlackElo "2695"]
[Result "0-1"]
[Round "04"]
[TimeControl "180+1"]
[Date "2022.05.25"]
[WhiteClock "0:00:08"]
[BlackClock "0:00:23"]

1. e4 {[%clk 0:03:00]}  c5 {[%clk 0:02:52]} 2. Nf3 {[%clk 0:03:01]}  d6 {[%clk 0:02:51]} 3. c4 {[%clk 0:03:01]}  e5 {[%clk 0:02:49]} 4. Nc3 {[%clk 0:03:02]}  Nc6 {[%clk 0:02:49]} 5. Be2 {[%clk 0:03:02]}  Be7 {[%clk 0:02:49]} 6. O-O {[%clk 0:03:03]}  f5 {[%clk 0:02:49]} 7. a3 {[%clk 0:03:02]}  a5 {[%clk 0:02:48]} 8. d3 {[%clk 0:03:01]}  Nf6 {[%clk 0:02:48]} 9. Rb1 {[%clk 0:02:54]}  O-O {[%clk 0:02:47]} 10. Bg5 {[%clk 0:02:46]}  fxe4 {[%clk 0:02:36]} 11. dxe4 {[%clk 0:02:43]}  Be6 {[%clk 0:02:35]} 12. Bxf6 {[%clk 0:02:29]}  Bxf6 {[%clk 0:02:35]} 13. Nb5 {[%clk 0:02:27]}  Nd4 {[%clk 0:02:31]} 14. Nfxd4 {[%clk 0:02:25]}  cxd4 {[%clk 0:02:32]} 15. Kh1 {[%clk 0:02:12]}  Bg5 {[%clk 0:02:30]} 16. b3 {[%clk 0:01:57]}  Rf6 {[%clk 0:02:26]} 17. Bg4 {[%clk 0:01:54]}  Bf7 {[%clk 0:02:11]} 18. Bf5 {[%clk 0:01:43]}  g6 {[%clk 0:01:57]} 19. Bg4 {[%clk 0:01:40]}  h5 {[%clk 0:01:50]} 20. Be2 {[%clk 0:01:34]}  Be6 {[%clk 0:01:44]} 21. Qd3 {[%clk 0:01:25]}  Rc8 {[%clk 0:01:42]} 22. Rb2 {[%clk 0:01:16]}  Qe7 {[%clk 0:01:40]} 23. a4 {[%clk 0:01:00]}  Rcf8 {[%clk 0:01:39]} 24. Bd1 {[%clk 0:00:55]}  Kh7 {[%clk 0:01:37]} 25. b4 {[%clk 0:00:45]}  axb4 {[%clk 0:01:37]} 26. a5 {[%clk 0:00:34]}  Be3 {[%clk 0:01:33]} 27. Bf3 {[%clk 0:00:30]}  Rxf3 {[%clk 0:01:30]} 28. gxf3 {[%clk 0:00:29]}  Bf4 {[%clk 0:01:30]} 29. Rg1 {[%clk 0:00:22]}  Bxh2 {[%clk 0:01:28]} 30. Rg2 {[%clk 0:00:14]}  Bf4 {[%clk 0:01:27]} 31. Kg1 {[%clk 0:00:08]}  h4 {[%clk 0:01:17]} 32. Kf1 {[%clk 0:00:06]}  Bh3 {[%clk 0:01:13]} 33. Kg1 {[%clk 0:00:02]}  Bxg2 {[%clk 0:01:13]} 34. Kxg2 {[%clk 0:00:03]}  h3+ {[%clk 0:01:10]} 35. Kh1 {[%clk 0:00:03]}  Kg7 {[%clk 0:01:03]} 36. Rxb4 {[%clk 0:00:03]}  Rh8 {[%clk 0:00:53]} 37. Rb1 {[%clk 0:00:04]}  h2 {[%clk 0:00:34]} 38. Na3 {[%clk 0:00:04]}  Rh5 {[%clk 0:00:31]} 39. Nc2 {[%clk 0:00:04]}  Kh6 {[%clk 0:00:30]} 40. Ne1 {[%clk 0:00:04]}  Qh4 {[%clk 0:00:28]} 41. Ng2 {[%clk 0:00:03]}  Qxf2 {[%clk 0:00:26]} 42. Nxf4 {[%clk 0:00:03]}  exf4 {[%clk 0:00:26]} 43. c5 {[%clk 0:00:01]}  Rg5 {[%clk 0:00:25]} 44. Qf1 {[%clk 0:00:01]}  Rg1+ {[%clk 0:00:24]} 45. Qxg1 {[%clk 0:00:02]}  hxg1=Q+ {[%clk 0:00:25]} 46. Rxg1 {[%clk 0:00:02]}  Qxf3+ {[%clk 0:00:25]} 47. Rg2 {[%clk 0:00:03]}  dxc5 {[%clk 0:00:25]} 48. Kh2 {[%clk 0:00:04]}  Qxe4 {[%clk 0:00:25]} 49. a6 {[%clk 0:00:05]}  bxa6 {[%clk 0:00:24]} 50. Rf2 {[%clk 0:00:06]}  f3 {[%clk 0:00:24]} 51. Kh3 {[%clk 0:00:07]}  Qf5+ {[%clk 0:00:23]} 52. Kg3 {[%clk 0:00:07]}  g5 {[%clk 0:00:23]} 53. Kh2 {[%clk 0:00:07]}  Qf4+ {[%clk 0:00:23]} 54. Kh3 {[%clk 0:00:08]}  Qh4# {[%clk 0:00:23]} 0-1


[Site "https://www.chess.com"]

[Event "Titled Tuesday Blitz May 24 Late 2022"]
[White "Aung Thant Zin"]
[Black "Estrada Nieto, Julian"]
[WhiteFideId "13000063"]
[BlackFideId "5101018"]
[WhiteElo "2278"]
[BlackElo "2252"]
[Result "1-0"]
[Round "05"]
[TimeControl "180+1"]
[Date "2022.05.25"]
[WhiteClock "0:01:02"]
[BlackClock "0:00:12"]

1. e4 {[%clk 0:03:00]}  e5 {[%clk 0:02:59]} 2. Nf3 {[%clk 0:03:00]}  Nc6 {[%clk 0:03:00]} 3. d4 {[%clk 0:03:00]}  exd4 {[%clk 0:02:59]} 4. Nxd4 {[%clk 0:03:01]}  Nf6 {[%clk 0:02:59]} 5. Nc3 {[%clk 0:03:00]}  Bb4 {[%clk 0:02:58]} 6. Nxc6 {[%clk 0:02:59]}  bxc6 {[%clk 0:02:58]} 7. Bd3 {[%clk 0:03:00]}  d5 {[%clk 0:02:59]} 8. exd5 {[%clk 0:03:01]}  O-O {[%clk 0:02:58]} 9. O-O {[%clk 0:03:01]}  cxd5 {[%clk 0:02:59]} 10. Bg5 {[%clk 0:03:00]}  c6 {[%clk 0:02:59]} 11. h3 {[%clk 0:03:00]}  Bd6 {[%clk 0:02:57]} 12. Qf3 {[%clk 0:02:57]}  Rb8 {[%clk 0:02:57]} 13. b3 {[%clk 0:02:55]}  Be5 {[%clk 0:02:55]} 14. Bd2 {[%clk 0:02:54]}  Re8 {[%clk 0:02:19]} 15. Rfe1 {[%clk 0:02:52]}  Bd7 {[%clk 0:02:16]} 16. Rad1 {[%clk 0:02:46]}  h6 {[%clk 0:02:09]} 17. Na4 {[%clk 0:02:37]}  Bd6 {[%clk 0:01:57]} 18. Rxe8+ {[%clk 0:02:32]}  Qxe8 {[%clk 0:01:55]} 19. Re1 {[%clk 0:02:31]}  Qd8 {[%clk 0:01:55]} 20. Bc3 {[%clk 0:02:12]}  Be6 {[%clk 0:01:50]} 21. Bd4 {[%clk 0:02:08]}  Ra8 {[%clk 0:01:26]} 22. Nc5 {[%clk 0:01:58]}  Qa5 {[%clk 0:01:13]} 23. Qe3 {[%clk 0:01:49]}  Bxc5 {[%clk 0:01:07]} 24. Bxc5 {[%clk 0:01:48]}  Bd7 {[%clk 0:01:00]} 25. Rd1 {[%clk 0:01:22]}  Re8 {[%clk 0:00:56]} 26. Qd4 {[%clk 0:01:21]}  Ne4 {[%clk 0:00:53]} 27. b4 {[%clk 0:01:16]}  Qxa2 {[%clk 0:00:46]} 28. Ra1 {[%clk 0:01:15]}  Nxc5 {[%clk 0:00:24]} 29. Rxa2 {[%clk 0:01:12]}  Re1+ {[%clk 0:00:23]} 30. Kh2 {[%clk 0:01:11]}  Ne6 {[%clk 0:00:18]} 31. Qxa7 {[%clk 0:01:10]}  Be8 {[%clk 0:00:16]} 32. Qb8 {[%clk 0:01:08]}  Ng5 {[%clk 0:00:14]} 33. c3 {[%clk 0:01:04]}  g6 {[%clk 0:00:13]} 34. Re2 {[%clk 0:01:04]}  Rxe2 {[%clk 0:00:12]} 35. Bxe2 {[%clk 0:01:05]}  Kf8 {[%clk 0:00:13]} 36. Qd8 {[%clk 0:01:02]}  Ne6 {[%clk 0:00:12]} 37. Qd6+ {[%clk 0:01:02]}  Kg7 {[%clk 0:00:12]} 38. Bg4 {[%clk 0:01:02]} 1-0


[Site "https://www.chess.com"]

[Event "Titled Tuesday Blitz May 24 Late 2022"]
[White "Bernal Moro, Luis Javier"]
[Black "Kruckenhauser, Arthur"]
[WhiteFideId "2200236"]
[BlackFideId "1642812"]
[WhiteElo "2373"]
[BlackElo "2243"]
[Result "0-1"]
[Round "05"]
[TimeControl "180+1"]
[Date "2022.05.25"]
[WhiteClock "0:00:35"]
[BlackClock "0:00:33"]

1. c4 {[%clk 0:03:00]}  c5 {[%clk 0:02:59]} 2. Nf3 {[%clk 0:03:00]}  Nf6 {[%clk 0:02:59]} 3. Nc3 {[%clk 0:02:59]}  e6 {[%clk 0:02:59]} 4. e3 {[%clk 0:02:54]}  d5 {[%clk 0:02:56]} 5. cxd5 {[%clk 0:02:53]}  exd5 {[%clk 0:02:57]} 6. d4 {[%clk 0:02:53]}  Nc6 {[%clk 0:02:57]} 7. Bb5 {[%clk 0:02:52]}  cxd4 {[%clk 0:02:54]} 8. exd4 {[%clk 0:02:51]}  Bd6 {[%clk 0:02:53]} 9. h3 {[%clk 0:02:47]}  O-O {[%clk 0:02:54]} 10. O-O {[%clk 0:02:47]}  Re8 {[%clk 0:02:50]} 11. Bg5 {[%clk 0:02:46]}  Be6 {[%clk 0:02:15]} 12. Re1 {[%clk 0:02:44]}  h6 {[%clk 0:02:07]} 13. Bh4 {[%clk 0:02:39]}  g5 {[%clk 0:02:04]} 14. Bg3 {[%clk 0:02:39]}  Bxg3 {[%clk 0:02:02]} 15. fxg3 {[%clk 0:02:39]}  a6 {[%clk 0:01:56]} 16. Bxc6 {[%clk 0:02:34]}  bxc6 {[%clk 0:01:57]} 17. Ne5 {[%clk 0:02:30]}  Nd7 {[%clk 0:01:43]} 18. Nxc6 {[%clk 0:01:29]}  Qb6 {[%clk 0:01:42]} 19. Ne5 {[%clk 0:01:29]}  Qxb2 {[%clk 0:01:41]} 20. Na4 {[%clk 0:01:25]}  Qa3 {[%clk 0:01:40]} 21. Nxd7 {[%clk 0:01:22]}  Bxd7 {[%clk 0:01:40]} 22. Nc5 {[%clk 0:01:22]}  Bb5 {[%clk 0:01:12]} 23. Qb3 {[%clk 0:01:13]}  Qa5 {[%clk 0:01:09]} 24. Rxe8+ {[%clk 0:01:01]}  Rxe8 {[%clk 0:01:10]} 25. Qf3 {[%clk 0:00:43]}  Qd2 {[%clk 0:00:36]} 26. Rd1 {[%clk 0:00:37]}  Qxa2 {[%clk 0:00:33]} 27. Qxd5 {[%clk 0:00:35]}  Qxd5 {[%clk 0:00:33]} 0-1


[Site "https://www.chess.com"]

[Event "Titled Tuesday Blitz May 24 Late 2022"]
[White "Clawitter, Craig"]
[Black "Ribeiro, Matheus Mendes Domingues"]
[WhiteFideId "2023105"]
[BlackFideId "324226923"]
[WhiteElo "2213"]
[BlackElo "1919"]
[Result "0-1"]
[Round "05"]
[TimeControl "180+1"]
[Date "2022.05.25"]
[WhiteClock "0:00:56"]
[BlackClock "0:01:21"]

1. e4 {[%clk 0:03:00]}  c5 {[%clk 0:02:49]} 2. Nf3 {[%clk 0:03:00]}  e6 {[%clk 0:02:47]} 3. d4 {[%clk 0:03:00]}  cxd4 {[%clk 0:02:44]} 4. Nxd4 {[%clk 0:03:01]}  Nf6 {[%clk 0:02:45]} 5. Nc3 {[%clk 0:03:00]}  Nc6 {[%clk 0:02:45]} 6. Ndb5 {[%clk 0:03:00]}  Bb4 {[%clk 0:02:44]} 7. a3 {[%clk 0:03:00]}  Bxc3+ {[%clk 0:02:42]} 8. Nxc3 {[%clk 0:03:01]}  d5 {[%clk 0:02:43]} 9. exd5 {[%clk 0:03:02]}  exd5 {[%clk 0:02:44]} 10. Bd3 {[%clk 0:03:01]}  O-O {[%clk 0:02:44]} 11. O-O {[%clk 0:03:01]}  d4 {[%clk 0:02:45]} 12. Ne2 {[%clk 0:03:01]}  Bg4 {[%clk 0:02:43]} 13. f3 {[%clk 0:02:55]}  Bh5 {[%clk 0:02:43]} 14. Nf4 {[%clk 0:02:44]}  Bg6 {[%clk 0:02:40]} 15. Re1 {[%clk 0:02:42]}  Qd6 {[%clk 0:02:33]} 16. Bd2 {[%clk 0:02:35]}  Rfe8 {[%clk 0:02:32]} 17. b4 {[%clk 0:02:20]}  a6 {[%clk 0:02:28]} 18. Rb1 {[%clk 0:02:15]}  Rxe1+ {[%clk 0:02:28]} 19. Qxe1 {[%clk 0:02:15]}  Re8 {[%clk 0:02:27]} 20. Qf2 {[%clk 0:01:58]}  Ne5 {[%clk 0:02:06]} 21. Bxg6 {[%clk 0:01:44]}  hxg6 {[%clk 0:01:54]} 22. Rd1 {[%clk 0:01:34]}  Nc4 {[%clk 0:01:51]} 23. Bc1 {[%clk 0:01:34]}  g5 {[%clk 0:01:39]} 24. Nd3 {[%clk 0:01:05]}  Ne3 {[%clk 0:01:37]} 25. Nc5 {[%clk 0:00:58]}  Nxd1 {[%clk 0:01:33]} 26. Nxb7 {[%clk 0:00:56]}  Nxf2 {[%clk 0:01:20]} 27. Nxd6 {[%clk 0:00:56]}  Re1+ {[%clk 0:01:20]} 28. Kxf2 {[%clk 0:00:56]}  Rxc1 {[%clk 0:01:21]} 0-1


[Site "https://www.chess.com"]